[Event "*** Titled Tuesday Blitz"]
[Site "Chess.com"]
[Date "2021.02.09"]
[Round "6"]
[White "Sibelephant"]
[Black "Murad_Ibrahimli"]
[Result "1-0"]
[WhiteElo "3025"]
[BlackElo "2718"]
[TimeControl "180+1"]
[EndTime "11:08:45 PST"]
[Termination "Sibelephant won by checkmate"]

1. c4 {[%clk 0:02:59.2]} 1... Nf6 {[%clk 0:02:58.9]} 2. Nc3 {[%clk 0:02:59.1]}
2... g6 {[%clk 0:02:58.5]} 3. g3 {[%clk 0:02:59.3]} 3... Bg7 {[%clk 0:02:58.7]}
4. Bg2 {[%clk 0:02:59.9]} 4... O-O {[%clk 0:02:59.3]} 5. Nf3 {[%clk 0:03:00.4]}
5... d6 {[%clk 0:02:59.9]} 6. O-O {[%clk 0:03:00.7]} 6... c5 {[%clk 0:02:51.3]}
7. b3 {[%clk 0:03:00.3]} 7... Nc6 {[%clk 0:02:51.4]} 8. Bb2 {[%clk 0:03:00.2]}
8... e5 {[%clk 0:02:48.4]} 9. d3 {[%clk 0:02:59.5]} 9... a6 {[%clk 0:02:44.9]}
10. Nd2 {[%clk 0:02:56.8]} 10... Rb8 {[%clk 0:02:42.4]} 11. e3 {[%clk 0:02:46]}
11... Be6 {[%clk 0:02:40.3]} 12. Rc1 {[%clk 0:02:42.5]} 12... Qd7 {[%clk
0:02:34.3]} 13. Nde4 {[%clk 0:02:28.3]} 13... h6 {[%clk 0:02:09.6]} 14. Nxf6+
{[%clk 0:02:16.6]} 14... Bxf6 {[%clk 0:02:08.9]} 15. f4 {[%clk 0:02:17.2]} 15...
Bg7 {[%clk 0:02:04.2]} 16. Nd5 {[%clk 0:02:10.9]} 16... f5 {[%clk 0:01:58.9]}
17. Qd2 {[%clk 0:02:08.4]} 17... Kh7 {[%clk 0:01:57.8]} 18. Rf2 {[%clk
0:01:58.2]} 18... b5 {[%clk 0:01:55.3]} 19. Rcf1 {[%clk 0:01:57.4]} 19... a5
{[%clk 0:01:40.7]} 20. e4 {[%clk 0:01:50.7]} 20... Nd4 {[%clk 0:01:23.1]} 21.
Bxd4 {[%clk 0:01:44.4]} 21... cxd4 {[%clk 0:01:14.7]} 22. exf5 {[%clk
0:01:25.2]} 22... gxf5 {[%clk 0:01:10.2]} 23. Qxa5 {[%clk 0:01:03]} 23... bxc4
{[%clk 0:01:09.6]} 24. bxc4 {[%clk 0:01:02.2]} 24... Rf7 {[%clk 0:00:50.6]} 25.
Qd2 {[%clk 0:00:56.1]} 25... Kh8 {[%clk 0:00:47.5]} 26. Re1 {[%clk 0:00:51.6]}
26... Re8 {[%clk 0:00:21]} 27. Rfe2 {[%clk 0:00:50.6]} 27... Bxd5 {[%clk
0:00:16.8]} 28. Bxd5 {[%clk 0:00:50.2]} 28... Rfe7 {[%clk 0:00:17]} 29. Kf2
{[%clk 0:00:34.7]} 29... Qa7 {[%clk 0:00:17.3]} 30. Kg2 {[%clk 0:00:31.8]} 30...
Qc5 {[%clk 0:00:17.2]} 31. g4 {[%clk 0:00:21]} 31... e4 {[%clk 0:00:14.8]} 32.
dxe4 {[%clk 0:00:20.2]} 32... fxe4 {[%clk 0:00:15.3]} 33. Rxe4 {[%clk
0:00:19.5]} 33... Rxe4 {[%clk 0:00:15.8]} 34. Rxe4 {[%clk 0:00:19.6]} 34... Rxe4
{[%clk 0:00:16.2]} 35. Bxe4 {[%clk 0:00:20.3]} 35... Qxc4 {[%clk 0:00:16.8]} 36.
Qc2 {[%clk 0:00:16.9]} 36... Qe6 {[%clk 0:00:13.1]} 37. Bf5 {[%clk 0:00:15.7]}
37... Qd5+ {[%clk 0:00:13]} 38. Kg3 {[%clk 0:00:13.7]} 38... Bf6 {[%clk
0:00:06.5]} 39. Qc8+ {[%clk 0:00:13.4]} 39... Kg7 {[%clk 0:00:06.9]} 40. Be6
{[%clk 0:00:12.5]} 40... Bh4+ {[%clk 0:00:01.6]} 41. Kxh4 {[%clk 0:00:11.7]}
41... Qf3 {[%clk 0:00:02.2]} 42. Qg8+ {[%clk 0:00:11.1]} 42... Kf6 {[%clk
0:00:03.1]} 43. Qf7# {[%clk 0:00:11.8]} 1-0

[Event "*** Titled Tuesday Blitz"]
[Site "Chess.com"]
[Date "2021.02.09"]
[Round "6"]
[White "kubal123"]
[Black "ChelsieMonica"]
[Result "0-1"]
[WhiteElo "2201"]
[BlackElo "2348"]
[TimeControl "180+1"]
[EndTime "11:08:47 PST"]
[Termination "ChelsieMonica won by resignation"]

1. e4 {[%clk 0:03:00.9]} 1... e5 {[%clk 0:02:58.3]} 2. Nf3 {[%clk 0:03:01.1]}
2... Nc6 {[%clk 0:02:57.9]} 3. Bb5 {[%clk 0:03:01.4]} 3... a6 {[%clk 0:02:57.3]}
4. Ba4 {[%clk 0:03:01.8]} 4... Nf6 {[%clk 0:02:57.2]} 5. d3 {[%clk 0:03:01.9]}
5... b5 {[%clk 0:02:54.8]} 6. Bb3 {[%clk 0:03:01.6]} 6... Be7 {[%clk 0:02:55.4]}
7. c3 {[%clk 0:03:01.4]} 7... Kf8 {[%clk 0:02:54.8]} 8. O-O {[%clk 0:03:00.4]}
8... h6 {[%clk 0:02:53.8]} 9. Re1 {[%clk 0:02:56.4]} 9... d6 {[%clk 0:02:52.3]}
10. d4 {[%clk 0:02:56.3]} 10... Bg4 {[%clk 0:02:50]} 11. d5 {[%clk 0:02:46]}
11... Na5 {[%clk 0:02:27.4]} 12. Bc2 {[%clk 0:02:45.9]} 12... g5 {[%clk
0:02:25.8]} 13. h3 {[%clk 0:02:45.6]} 13... Bh5 {[%clk 0:02:25.3]} 14. Nbd2
{[%clk 0:02:33.1]} 14... Qd7 {[%clk 0:02:19.4]} 15. Nf1 {[%clk 0:02:16]} 15...
g4 {[%clk 0:02:08]} 16. hxg4 {[%clk 0:02:14.3]} 16... Bxg4 {[%clk 0:02:08.9]}
17. Ne3 {[%clk 0:02:08.4]} 17... Bh5 {[%clk 0:02:06.3]} 18. Nf5 {[%clk 0:02:08]}
18... Ng8 {[%clk 0:02:03]} 19. a4 {[%clk 0:01:30.7]} 19... bxa4 {[%clk
0:01:07.2]} 20. Bxa4 {[%clk 0:01:27.8]} 20... Qd8 {[%clk 0:01:06.5]} 21. Qd3
{[%clk 0:01:18.5]} 21... Nb7 {[%clk 0:01:05.1]} 22. Bc6 {[%clk 0:01:17.3]} 22...
Nc5 {[%clk 0:01:04.7]} 23. Qe3 {[%clk 0:01:08.8]} 23... Bg5 {[%clk 0:01:04.2]}
24. Nxg5 {[%clk 0:01:06.3]} 24... hxg5 {[%clk 0:01:03.1]} 25. Bxa8 {[%clk
0:01:04.4]} 25... Qxa8 {[%clk 0:01:02.6]} 26. Qxg5 {[%clk 0:01:03.8]} 26... Bg6
{[%clk 0:01:01.4]} 27. Nh4 {[%clk 0:00:55]} 27... Ne7 {[%clk 0:00:47.8]} 28.
Nxg6+ {[%clk 0:00:54.2]} 28... Nxg6 {[%clk 0:00:48.3]} 29. b4 {[%clk 0:00:51.3]}
29... Nd7 {[%clk 0:00:40.3]} 30. b5 {[%clk 0:00:43.3]} 30... a5 {[%clk
0:00:38.2]} 31. Be3 {[%clk 0:00:34]} 31... Kg7 {[%clk 0:00:31.5]} 32. g3 {[%clk
0:00:24.3]} 32... a4 {[%clk 0:00:26.6]} 33. Ra3 {[%clk 0:00:20]} 33... Qa5
{[%clk 0:00:26.4]} 34. Rea1 {[%clk 0:00:17]} 34... Qxb5 {[%clk 0:00:26.8]} 35.
Rxa4 {[%clk 0:00:17.4]} 35... Qe2 {[%clk 0:00:24.8]} 36. R4a2 {[%clk 0:00:14.9]}
36... Qf3 {[%clk 0:00:24.6]} 37. Qh6+ {[%clk 0:00:12.6]} 37... Rxh6 {[%clk
0:00:24.6]} 38. Bxh6+ {[%clk 0:00:13.5]} 38... Kxh6 {[%clk 0:00:25.5]} 39. Ra7
{[%clk 0:00:14]} 39... Qd3 {[%clk 0:00:24.3]} 40. Rxc7 {[%clk 0:00:13.7]} 40...
Nf6 {[%clk 0:00:23.9]} 41. Rxf7 {[%clk 0:00:13.2]} 41... Nxe4 {[%clk 0:00:24.1]}
42. Raa7 {[%clk 0:00:13.3]} 42... Qxc3 {[%clk 0:00:20.3]} 43. Rh7+ {[%clk
0:00:13.1]} 43... Kg5 {[%clk 0:00:20.8]} 44. Rag7 {[%clk 0:00:12.5]} 44... Qf3
{[%clk 0:00:20.5]} 45. Rf7 {[%clk 0:00:09.9]} 45... Qd1+ {[%clk 0:00:19]} 46.
Kg2 {[%clk 0:00:10.4]} 46... Qxd5 {[%clk 0:00:19.7]} 47. f4+ {[%clk 0:00:10.3]}
47... exf4 {[%clk 0:00:19.5]} 48. gxf4+ {[%clk 0:00:11.2]} 48... Nxf4+ {[%clk
0:00:20]} 49. Kf3 {[%clk 0:00:11.5]} 49... Nf6+ {[%clk 0:00:19.6]} 0-1

[Event "*** Titled Tuesday Blitz"]
[Site "Chess.com"]
[Date "2021.02.09"]
[Round "6"]
[White "ega2006"]
[Black "elextranjero00"]
[Result "0-1"]
[WhiteElo "2411"]
[BlackElo "2596"]
[TimeControl "180+1"]
[EndTime "11:08:48 PST"]
[Termination "elextranjero00 won by resignation"]

1. e4 {[%clk 0:03:00.9]} 1... e5 {[%clk 0:02:58.4]} 2. Nf3 {[%clk 0:02:54.6]}
2... Nc6 {[%clk 0:02:56.2]} 3. Bc4 {[%clk 0:02:53.9]} 3... Nf6 {[%clk
0:02:53.4]} 4. d3 {[%clk 0:02:53.7]} 4... h6 {[%clk 0:02:48.8]} 5. O-O {[%clk
0:02:53.2]} 5... d6 {[%clk 0:02:41.9]} 6. Re1 {[%clk 0:02:51]} 6... g5 {[%clk
0:02:37.7]} 7. c3 {[%clk 0:02:50.2]} 7... Bg7 {[%clk 0:02:36.9]} 8. Na3 {[%clk
0:02:50.7]} 8... Ne7 {[%clk 0:02:26.5]} 9. Nc2 {[%clk 0:02:47.9]} 9... Ng6
{[%clk 0:02:25.3]} 10. Ne3 {[%clk 0:02:47.7]} 10... g4 {[%clk 0:02:16.1]} 11.
Nd2 {[%clk 0:02:47.5]} 11... h5 {[%clk 0:02:13.4]} 12. Nf5 {[%clk 0:02:45.6]}
12... Bxf5 {[%clk 0:02:09]} 13. exf5 {[%clk 0:02:46.5]} 13... Ne7 {[%clk
0:02:09.3]} 14. d4 {[%clk 0:02:45.2]} 14... exd4 {[%clk 0:01:46.9]} 15. cxd4
{[%clk 0:02:42.5]} 15... O-O {[%clk 0:01:45.2]} 16. Nf1 {[%clk 0:02:24.8]} 16...
Nxf5 {[%clk 0:01:38.4]} 17. Qd3 {[%clk 0:02:23.3]} 17... Qd7 {[%clk 0:01:35.7]}
18. Bb3 {[%clk 0:02:12.1]} 18... c5 {[%clk 0:01:11]} 19. Be3 {[%clk 0:01:40.6]}
19... Rfe8 {[%clk 0:00:51.1]} 20. Bc2 {[%clk 0:01:35.9]} 20... Nxd4 {[%clk
0:00:47.8]} 21. Bxd4 {[%clk 0:01:34.1]} 21... cxd4 {[%clk 0:00:48.7]} 22. Ng3
{[%clk 0:01:32]} 22... Rxe1+ {[%clk 0:00:44.7]} 23. Rxe1 {[%clk 0:01:31.5]}
23... Re8 {[%clk 0:00:45.4]} 24. Rd1 {[%clk 0:01:32.1]} 24... Re5 {[%clk
0:00:36.9]} 25. Qxd4 {[%clk 0:01:31.1]} 25... Qe6 {[%clk 0:00:30.8]} 26. Qxd6
{[%clk 0:00:57.3]} 26... Re1+ {[%clk 0:00:18.9]} 27. Nf1 {[%clk 0:00:57.5]}
27... Qxd6 {[%clk 0:00:15.4]} 28. Rxd6 {[%clk 0:00:57]} 28... Kf8 {[%clk
0:00:11.4]} 29. g3 {[%clk 0:00:46.5]} 29... Rc1 {[%clk 0:00:10.9]} 30. Bb3
{[%clk 0:00:39.3]} 30... Ke7 {[%clk 0:00:11.1]} 31. Rd4 {[%clk 0:00:26.3]} 31...
Nd7 {[%clk 0:00:10.6]} 32. Re4+ {[%clk 0:00:24.5]} 32... Ne5 {[%clk 0:00:10.7]}
33. Kg2 {[%clk 0:00:24.4]} 33... Kd6 {[%clk 0:00:10.8]} 34. Rd4+ {[%clk
0:00:20.2]} 34... Kc7 {[%clk 0:00:09.9]} 35. Rd1 {[%clk 0:00:20.8]} 35... Rxd1
{[%clk 0:00:09.2]} 36. Bxd1 {[%clk 0:00:21.7]} 36... Nd3 {[%clk 0:00:09.4]} 37.
b3 {[%clk 0:00:17.1]} 37... Bd4 {[%clk 0:00:06.7]} 38. Ne3 {[%clk 0:00:17.2]}
38... Bxe3 {[%clk 0:00:06.3]} 39. fxe3 {[%clk 0:00:18.1]} 39... Kd6 {[%clk
0:00:06.3]} 40. Bc2 {[%clk 0:00:15.4]} 40... Ne1+ {[%clk 0:00:06.1]} 41. Kf1
{[%clk 0:00:14.9]} 41... Nxc2 {[%clk 0:00:07]} 42. Ke2 {[%clk 0:00:15.8]} 42...
Nb4 {[%clk 0:00:06.2]} 43. a3 {[%clk 0:00:16.2]} 43... Nc6 {[%clk 0:00:06.4]}
44. Kd3 {[%clk 0:00:17.1]} 44... Ke5 {[%clk 0:00:06.5]} 45. e4 {[%clk 0:00:18]}
45... f6 {[%clk 0:00:06.2]} 46. Ke3 {[%clk 0:00:18.9]} 46... b6 {[%clk
0:00:06.1]} 47. b4 {[%clk 0:00:19.8]} 47... a5 {[%clk 0:00:05.8]} 48. b5 {[%clk
0:00:20.2]} 48... Na7 {[%clk 0:00:06.1]} 49. a4 {[%clk 0:00:21.1]} 49... Nc8
{[%clk 0:00:06.7]} 50. Kd3 {[%clk 0:00:22]} 50... Nd6 {[%clk 0:00:07.2]} 51. Ke3
{[%clk 0:00:22.9]} 51... Nxe4 {[%clk 0:00:07.6]} 0-1

[Event "*** Titled Tuesday Blitz"]
[Site "Chess.com"]
[Date "2021.02.09"]
[Round "6"]
[White "Piotrek1979"]
[Black "Natalya_Buksa"]
[Result "0-1"]
[WhiteElo "2386"]
[BlackElo "2570"]
[TimeControl "180+1"]
[EndTime "11:08:49 PST"]
[Termination "Natalya_Buksa won on time"]

1. e4 {[%clk 0:03:00.9]} 1... c5 {[%clk 0:03:00.2]} 2. Nf3 {[%clk 0:02:58.3]}
2... Nc6 {[%clk 0:03:00.6]} 3. d4 {[%clk 0:02:57.8]} 3... cxd4 {[%clk
0:03:01.5]} 4. Nxd4 {[%clk 0:02:58]} 4... Nf6 {[%clk 0:03:02.4]} 5. Nc3 {[%clk
0:02:56.8]} 5... e5 {[%clk 0:03:02]} 6. Ndb5 {[%clk 0:02:56.3]} 6... d6 {[%clk
0:03:02.5]} 7. Bg5 {[%clk 0:02:55.5]} 7... a6 {[%clk 0:03:02.8]} 8. Na3 {[%clk
0:02:54.2]} 8... b5 {[%clk 0:03:03.3]} 9. Nd5 {[%clk 0:02:50.1]} 9... Be7 {[%clk
0:03:03.6]} 10. Bxf6 {[%clk 0:02:49.2]} 10... Bxf6 {[%clk 0:03:04.5]} 11. c3
{[%clk 0:02:45.6]} 11... Rb8 {[%clk 0:03:02.8]} 12. Nc2 {[%clk 0:02:44.4]} 12...
Bg5 {[%clk 0:03:03.3]} 13. h4 {[%clk 0:02:41.5]} 13... Bh6 {[%clk 0:03:02.7]}
14. g3 {[%clk 0:02:39.7]} 14... O-O {[%clk 0:03:01]} 15. Bh3 {[%clk 0:02:38.3]}
15... Be6 {[%clk 0:03:00]} 16. Kf1 {[%clk 0:02:37.6]} 16... Qd7 {[%clk
0:02:54.9]} 17. Kg2 {[%clk 0:02:36.7]} 17... Ne7 {[%clk 0:02:52.8]} 18. Nce3
{[%clk 0:02:34.5]} 18... Bxe3 {[%clk 0:02:48]} 19. Nxe3 {[%clk 0:02:33]} 19...
d5 {[%clk 0:02:45.4]} 20. exd5 {[%clk 0:02:30.8]} 20... Nxd5 {[%clk 0:02:42.4]}
21. Kh2 {[%clk 0:01:31.1]} 21... Rfd8 {[%clk 0:02:13.2]} 22. Nxd5 {[%clk
0:01:23]} 22... Qxd5 {[%clk 0:02:13.2]} 23. Qxd5 {[%clk 0:01:18.1]} 23... Bxd5
{[%clk 0:02:13.5]} 24. Rhe1 {[%clk 0:01:15.4]} 24... f6 {[%clk 0:02:13.8]} 25.
Re3 {[%clk 0:01:09.8]} 25... Kf7 {[%clk 0:02:10.6]} 26. b3 {[%clk 0:01:06.7]}
26... Rd6 {[%clk 0:02:07.1]} 27. Rae1 {[%clk 0:01:05.8]} 27... Rbd8 {[%clk
0:02:07.5]} 28. f4 {[%clk 0:01:03.7]} 28... e4 {[%clk 0:02:00.9]} 29. Bf5 {[%clk
0:01:02]} 29... Re8 {[%clk 0:01:45.5]} 30. Bxe4 {[%clk 0:00:47.6]} 30... Bxe4
{[%clk 0:01:45.3]} 31. Rxe4 {[%clk 0:00:48.5]} 31... Rd2+ {[%clk 0:01:45.3]} 32.
Kh3 {[%clk 0:00:46.8]} 32... Rxe4 {[%clk 0:01:45.7]} 33. Rxe4 {[%clk 0:00:47.2]}
33... Rxa2 {[%clk 0:01:46.6]} 34. c4 {[%clk 0:00:44.8]} 34... bxc4 {[%clk
0:01:35.7]} 35. Rxc4 {[%clk 0:00:44.1]} 35... h5 {[%clk 0:01:35.6]} 36. f5
{[%clk 0:00:39.9]} 36... Ra5 {[%clk 0:01:32.7]} 37. Rc7+ {[%clk 0:00:38.5]}
37... Kg8 {[%clk 0:01:32]} 38. g4 {[%clk 0:00:36.7]} 38... hxg4+ {[%clk
0:01:28.4]} 39. Kxg4 {[%clk 0:00:37.6]} 39... Rb5 {[%clk 0:01:29]} 40. Ra7
{[%clk 0:00:35.4]} 40... a5 {[%clk 0:01:27.9]} 41. h5 {[%clk 0:00:34.9]} 41...
Kh7 {[%clk 0:01:28.3]} 42. Ra8 {[%clk 0:00:32.7]} 42... Rb4+ {[%clk 0:01:28.1]}
43. Kf3 {[%clk 0:00:31.5]} 43... Rxb3+ {[%clk 0:01:28.7]} 44. Ke4 {[%clk
0:00:31.1]} 44... Rb4+ {[%clk 0:01:28]} 45. Kf3 {[%clk 0:00:30.5]} 45... a4
{[%clk 0:01:28.5]} 46. Rc8 {[%clk 0:00:24.7]} 46... Kh6 {[%clk 0:01:28.4]} 47.
Rh8+ {[%clk 0:00:22.7]} 47... Kg5 {[%clk 0:01:28.6]} 48. Rh7 {[%clk 0:00:21.5]}
48... Rb7 {[%clk 0:01:17]} 49. h6 {[%clk 0:00:21.1]} 49... Rb3+ {[%clk 0:01:17]}
50. Ke4 {[%clk 0:00:20.8]} 50... Rb4+ {[%clk 0:01:16.3]} 51. Kf3 {[%clk
0:00:19.4]} 51... gxh6 {[%clk 0:01:16.7]} 52. Rh8 {[%clk 0:00:10]} 52... h5
{[%clk 0:01:13.8]} 53. Rg8+ {[%clk 0:00:07.1]} 53... Kxf5 {[%clk 0:01:13.9]} 54.
Rh8 {[%clk 0:00:05.9]} 54... h4 {[%clk 0:01:14.3]} 55. Rh5+ {[%clk 0:00:04.4]}
55... Kg6 {[%clk 0:01:14.8]} 56. Ra5 {[%clk 0:00:03.9]} 56... h3 {[%clk
0:01:09.7]} 57. Kg3 {[%clk 0:00:02.6]} 57... Rb3+ {[%clk 0:01:10.3]} 58. Kh2
{[%clk 0:00:03.5]} 58... a3 {[%clk 0:01:10.1]} 59. Ra8 {[%clk 0:00:03.1]} 59...
Kg5 {[%clk 0:01:09.9]} 60. Ra5+ {[%clk 0:00:03.9]} 60... f5 {[%clk 0:01:10.3]}
61. Ra7 {[%clk 0:00:03.5]} 61... Kg4 {[%clk 0:01:10.2]} 62. Ra8 {[%clk 0:00:03]}
62... Rb2+ {[%clk 0:01:09.7]} 63. Kh1 {[%clk 0:00:03.9]} 63... a2 {[%clk
0:01:10]} 64. Ra4+ {[%clk 0:00:03.4]} 64... f4 {[%clk 0:01:10.3]} 0-1

[Event "*** Titled Tuesday Blitz"]
[Site "Chess.com"]
[Date "2021.02.09"]
[Round "6"]
[White "oykuince"]
[Black "LenkaPtacnikova"]
[Result "1-0"]
[WhiteElo "1978"]
[BlackElo "2132"]
[TimeControl "180+1"]
[EndTime "11:08:49 PST"]
[Termination "oykuince won on time"]

1. e4 {[%clk 0:03:00.9]} 1... c5 {[%clk 0:02:58.3]} 2. Nf3 {[%clk 0:02:59.9]}
2... e6 {[%clk 0:02:57.7]} 3. d4 {[%clk 0:02:59.4]} 3... cxd4 {[%clk 0:02:57.4]}
4. Nxd4 {[%clk 0:03:00.3]} 4... Nf6 {[%clk 0:02:56.6]} 5. Nc3 {[%clk 0:03:00.4]}
5... Nc6 {[%clk 0:02:56.9]} 6. g3 {[%clk 0:03:00.5]} 6... Be7 {[%clk 0:02:45.4]}
7. Bg2 {[%clk 0:02:59.4]} 7... O-O {[%clk 0:02:45.2]} 8. O-O {[%clk 0:02:58.6]}
8... a6 {[%clk 0:02:37.3]} 9. Nxc6 {[%clk 0:02:46.1]} 9... dxc6 {[%clk
0:02:34.8]} 10. e5 {[%clk 0:02:41.2]} 10... Nd5 {[%clk 0:02:34.5]} 11. Qg4
{[%clk 0:02:16.1]} 11... Nxc3 {[%clk 0:01:51.9]} 12. bxc3 {[%clk 0:02:05.4]}
12... Qc7 {[%clk 0:01:37.8]} 13. Bf4 {[%clk 0:01:58.4]} 13... Rd8 {[%clk
0:01:28.7]} 14. h4 {[%clk 0:01:57.3]} 14... b5 {[%clk 0:01:20]} 15. h5 {[%clk
0:01:39.5]} 15... Bb7 {[%clk 0:01:17.3]} 16. h6 {[%clk 0:01:37.3]} 16... g6
{[%clk 0:01:16.5]} 17. Rfe1 {[%clk 0:01:34.2]} 17... c5 {[%clk 0:01:12.7]} 18.
Bxb7 {[%clk 0:01:28.8]} 18... Qxb7 {[%clk 0:01:12.2]} 19. Bg5 {[%clk 0:01:29.1]}
19... c4 {[%clk 0:01:05.5]} 20. Qh4 {[%clk 0:00:52.5]} 20... Ra7 {[%clk
0:00:54.9]} 21. Rad1 {[%clk 0:00:48.5]} 21... Rd5 {[%clk 0:00:42.8]} 22. Rxd5
{[%clk 0:00:40.6]} 22... exd5 {[%clk 0:00:42.6]} 23. e6 {[%clk 0:00:40.8]} 23...
f5 {[%clk 0:00:39.3]} 24. Qd4 {[%clk 0:00:23.2]} 24... Bxg5 {[%clk 0:00:23.9]}
25. e7 {[%clk 0:00:21.9]} 25... Qxe7 {[%clk 0:00:23.6]} 26. Rxe7 {[%clk
0:00:18]} 26... Rxe7 {[%clk 0:00:23.3]} 27. Qxd5+ {[%clk 0:00:18.7]} 27... Kf8
{[%clk 0:00:20.4]} 28. Qa8+ {[%clk 0:00:18.7]} 28... Kf7 {[%clk 0:00:19.2]} 29.
Qxa6 {[%clk 0:00:18.2]} 29... Bxh6 {[%clk 0:00:17]} 30. Qxb5 {[%clk 0:00:18.3]}
30... Bg7 {[%clk 0:00:14.8]} 31. Qxc4+ {[%clk 0:00:18]} 31... Kf8 {[%clk
0:00:15.1]} 32. Qc8+ {[%clk 0:00:17.4]} 32... Kf7 {[%clk 0:00:13.2]} 33. c4
{[%clk 0:00:16.1]} 33... Be5 {[%clk 0:00:09.5]} 34. c5 {[%clk 0:00:13.7]} 34...
Rc7 {[%clk 0:00:09.2]} 35. Qd8 {[%clk 0:00:02.4]} 35... Rxc5 {[%clk 0:00:06]}
36. Qd7+ {[%clk 0:00:02.6]} 36... Kf6 {[%clk 0:00:03.5]} 37. Qd8+ {[%clk
0:00:02.5]} 37... Kf7 {[%clk 0:00:02.7]} 38. Qd7+ {[%clk 0:00:02]} 38... Kf6
{[%clk 0:00:02.9]} 39. Qxh7 {[%clk 0:00:02]} 1-0

[Event "*** Titled Tuesday Blitz"]
[Site "Chess.com"]
[Date "2021.02.09"]
[Round "6"]
[White "nrvisakh"]
[Black "Susal_De_Silva"]
[Result "1-0"]
[WhiteElo "2757"]
[BlackElo "2612"]
[TimeControl "180+1"]
[EndTime "11:08:50 PST"]
[Termination "nrvisakh won on time"]

1. Nf3 {[%clk 0:03:00.9]} 1... Nf6 {[%clk 0:02:59.8]} 2. g3 {[%clk 0:03:00.7]}
2... b6 {[%clk 0:03:00.1]} 3. Bg2 {[%clk 0:03:00.8]} 3... Bb7 {[%clk 0:03:01]}
4. O-O {[%clk 0:03:01.1]} 4... g6 {[%clk 0:03:01.7]} 5. c4 {[%clk 0:02:59.5]}
5... Bg7 {[%clk 0:03:02]} 6. Nc3 {[%clk 0:02:59.3]} 6... O-O {[%clk 0:03:02.5]}
7. Re1 {[%clk 0:02:59.6]} 7... d6 {[%clk 0:02:58.5]} 8. e4 {[%clk 0:02:57.8]}
8... Nbd7 {[%clk 0:02:57.8]} 9. d4 {[%clk 0:02:57.1]} 9... e5 {[%clk 0:02:55.3]}
10. d5 {[%clk 0:02:56.8]} 10... a5 {[%clk 0:02:52.7]} 11. Rb1 {[%clk 0:02:49.6]}
11... Nc5 {[%clk 0:02:46.5]} 12. Qc2 {[%clk 0:02:45.5]} 12... Bc8 {[%clk
0:02:44.7]} 13. b3 {[%clk 0:02:42.3]} 13... Ne8 {[%clk 0:02:43.9]} 14. a3 {[%clk
0:02:38.4]} 14... f5 {[%clk 0:02:35.3]} 15. b4 {[%clk 0:02:33.2]} 15... axb4
{[%clk 0:02:33.6]} 16. axb4 {[%clk 0:02:34.1]} 16... fxe4 {[%clk 0:02:23.5]} 17.
Ng5 {[%clk 0:01:37.2]} 17... Nd3 {[%clk 0:02:15.6]} 18. Rxe4 {[%clk 0:01:36.9]}
18... Nxc1 {[%clk 0:02:10.1]} 19. Qxc1 {[%clk 0:01:34.6]} 19... Bf5 {[%clk
0:02:05.5]} 20. Ne6 {[%clk 0:01:32.2]} 20... Bxe6 {[%clk 0:01:19.2]} 21. dxe6
{[%clk 0:01:30.7]} 21... Qf6 {[%clk 0:01:19.7]} 22. Re2 {[%clk 0:01:05.7]} 22...
Rb8 {[%clk 0:01:10.5]} 23. Bc6 {[%clk 0:00:41.6]} 23... Kh8 {[%clk 0:01:02.3]}
24. Bd7 {[%clk 0:00:40.1]} 24... Qf3 {[%clk 0:00:40.4]} 25. Qe3 {[%clk
0:00:34.8]} 25... Qxe3 {[%clk 0:00:37.3]} 26. fxe3 {[%clk 0:00:34.9]} 26... Nf6
{[%clk 0:00:36.6]} 27. Bc6 {[%clk 0:00:34]} 27... Bh6 {[%clk 0:00:20.7]} 28. Rf1
{[%clk 0:00:31.5]} 28... Kg7 {[%clk 0:00:20.8]} 29. e7 {[%clk 0:00:28.7]} 29...
Rg8 {[%clk 0:00:13.6]} 30. Nd5 {[%clk 0:00:22.9]} 30... Nxd5 {[%clk 0:00:08.9]}
31. Bxd5 {[%clk 0:00:23.8]} 31... Rge8 {[%clk 0:00:07.6]} 32. Rf7+ {[%clk
0:00:24.2]} 32... Kh8 {[%clk 0:00:08.5]} 33. Bc6 {[%clk 0:00:24.3]} 33... Bg7
{[%clk 0:00:05.6]} 34. Ref2 {[%clk 0:00:22.9]} 34... Kg8 {[%clk 0:00:05.8]} 35.
Bd5 {[%clk 0:00:20.8]} 35... Kh8 {[%clk 0:00:06]} 36. Bc6 {[%clk 0:00:20.9]}
36... Kg8 {[%clk 0:00:06.1]} 37. b5 {[%clk 0:00:21.2]} 37... h5 {[%clk
0:00:04.9]} 38. Kg2 {[%clk 0:00:21]} 38... Kh7 {[%clk 0:00:02.9]} 39. g4 {[%clk
0:00:16.8]} 39... hxg4 {[%clk 0:00:02.2]} 40. Kg3 {[%clk 0:00:16.9]} 40... Kh6
{[%clk 0:00:03.1]} 41. Kxg4 {[%clk 0:00:16.8]} 41... Kh7 {[%clk 0:00:04]} 42.
R2f3 {[%clk 0:00:17]} 42... Kg8 {[%clk 0:00:02.1]} 43. Bd5 {[%clk 0:00:16.8]}
1-0